Cogmind - Beta 14 @@@ ROGUE MODE // 2024.11.18 @ 19:43:30 Player: Fangrelle Result: Destroyed by D-53 Grenadier with Mini Grenade Launcher Performance ------------- Evolutions (0) 0 Regions Visited (4) 800 Robots Destroyed (10) 50 Value Destroyed (265) 265 Prototype IDs (23) 460 Alien Tech Used (0) 0 Bonus (300) 300 TOTAL SCORE: 1875 Bonus ------- Aligned with FarCom 300 Cogmind --------- Core Integrity 0/250 Matter 99/300 Energy 100/100 System Corruption 1% Temperature Cool (0) Movement Core (1400) Ox27 Location -9/Mines Parts ------- > --- POWER (1) -------- (None) > --- PROPULSION (2) --- (None) > --- UTILITY (2) ------ Huge Storage Unit > --- WEAPON (2) ------- Grenade Launcher > --- INVENTORY (25) --- Ion Engine Fission Core Light Fission Core Light Treads Light Treads Aluminum Leg Aluminum Leg Compact Wheel Flying Fortress v7 Large Storage Unit High-capacity Storage Unit High-capacity Matter Pod (200) High-capacity Matter Pod (200) Visual Processing Unit Signal Interpreter ECM Suite Datajack Peak State ------------ > --- POWER ------------ Light Nuclear Core > --- PROPULSION ------- Light Treads Light Treads > --- UTILITY ---------- Huge Storage Unit Light Armor Plating > --- WEAPON ----------- Heavy Assault Rifle Rocket Launcher > --- INVENTORY -------- Ion Engine Nuclear Core Fission Core Light Fission Core Light Treads Light Treads Aluminum Leg Aluminum Leg Compact Wheel Flying Fortress v7 Large Storage Unit High-capacity Storage Unit High-capacity Matter Pod High-capacity Matter Pod Visual Processing Unit Signal Interpreter ECM Suite Light Armor Plating Grenade Launcher Datajack [Rating: 17] Favorites ----------- Power Light Nuclear Core Engine Ion Engine Power Core Light Nuclear Core Propulsion Light Treads Treads Light Treads Leg Aluminum Leg Wheel Compact Wheel Utility Visual Processing Unit Storage High-capacity Storage Unit Processor Visual Processing Unit Protection Light Armor Plating Weapon Light Assault Rifle Energy Gun Small Laser Ballistic Gun Light Assault Rifle Launcher Rocket Launcher Build | -11 -10 -10 -10 -9 ------- Run | Yrd Mat Min Exi Min Slots Evolved . | . . . . . Power . | . . . . . Propulsion . | . . . . . Utility . | . . . . . Weapon . | . . . . . Parts Attached 20 | . 10 3 3 4 Power 1 | . . 1 . . Engine . | . . . . . Core 1 | . . 1 . . Reactor . | . . . . . Propulsion 7 | . 5 1 1 . Treads 5 | . 3 1 1 . Leg . | . . . . . Wheel 2 | . 2 . . . Hover . | . . . . . Flight . | . . . . . Utility 7 | . 4 . 2 1 Device . | . . . . . Storage 3 | . 2 . 1 . Processor 1 | . 1 . . . Hackware . | . . . . . Protection 3 | . 1 . 1 1 Artifact . | . . . . . Weapon 5 | . 1 1 . 3 Energy Gun . | . . . . . Energy Cannon . | . . . . . Ballistic Gun 3 | . 1 1 . 1 Ballistic Cannon . | . . . . . Launcher 2 | . . . . 2 Special Weapon . | . . . . . Impact Weapon . | . . . . . Slashing Weapon . | . . . . . Piercing Weapon . | . . . . . Special Melee Weapon . | . . . . . Unidentified Prototypes . | . . . . . Parts Lost 9 | . 1 1 . 7 Power 2 | . . 1 . 1 Propulsion 3 | . 1 . . 2 Utility 2 | . . . . 2 Weapon 2 | . . . . 2 Highest Loss Streak 7 | . 1 1 . 7 To Critical Strikes . | . . . . . Average Slot Usage (%) 89 | . 96 99 71 87 Engine 6 | . 14 8 . . Core 7 | . . 5 14 14 Treads 26 | . 18 28 28 27 Wheel 1 | . 8 . . . Storage 14 | . 14 14 14 14 Processor 10 | . 9 14 9 . Protection 2 | . . . 4 14 Ballistic Gun 18 | . 27 28 . 14 Peak Build Rating 17 | . 8 13 13 17 Average Rating 10 | . 7 10 11 15 On Entrance 9 | 6 6 8 13 13 Naked Turns . | . . . . . Heaviest Build 95 | 12 47 49 88 95 Greatest Support 40 | 20 40 40 40 40 Greatest Overweight (x) 2 | . 1 1 2 2 Average Overweight (x) 1 | . . 1 2 2 Largest Inventory Capacity 25 | . 20 20 25 25 Average Capacity 20 | . 13 20 25 25 Most Carried 25 | . 8 20 25 24 Average Carried 17 | . 7 14 24 23 Final Capacity 25 | 8 20 20 25 25 Final Carried 25 | 6 8 20 25 20 Class Distribution -------------------- 90% | Mutant 9% | Scavenger-Mutant Dominant Class ---------------- Mutant | -10/Materials Mutant | -10/Mines Mutant | -10/Exiles Scavenger-Mutant | -9/Mines Resources | -11 -10 -10 -10 -9 ----------- Run | Yrd Mat Min Exi Min Matter Collected 523 | 200 82 175 . 66 Remotely . | . . . . . Salvage Created 348 | . 161 135 . 52 Parts 24 | . 7 12 . 5 Haulers Intercepted . | . . . . . Recyclers Shooed . | . . . . . Parts Field Recycled . | . . . . . Retrieved Matter . | . . . . . Parts Self-Destructed . | . . . . . Prevented . | . . . . . Kills | -11 -10 -10 -10 -9 ------- Run | Yrd Mat Min Exi Min Combat Hostiles Destroyed 23 | . 4 5 . 14 Guns 13 | . 4 5 . 4 AOE 10 | . . . . 10 Classes Destroyed 4 | . 1 1 . 2 Builder 1 | . . . . 1 Swarmer 3 | . . 3 . . Grunt 6 | . 4 2 . . Assembled 14 | . . . . 14 Best Kill Streak 15 | . 2 3 . 15 Combat Bots Only 14 | . 2 3 . 14 Max Kills in Single Turn 4 | . 1 1 . 4 Gunslinging . | . . . . . Exploded 4 | . . . . 4 Melee . | . . . . . Uniques/NPCs Destroyed . | . . . . . Combat | -11 -10 -10 -10 -9 -------- Run | Yrd Mat Min Exi Min Hostile Shots Fired 93 | . 31 20 . 42 Missed 25 | . 5 7 . 13 Damage Taken 1381 | . 302 165 . 914 Core 271 | . 73 27 . 171 Absorbed by Shields . | . . . . . Core Remaining (%) 100 | 100 . . . . Volleys Fired 74 | . 41 10 . 23 Largest 2 | . 2 2 . 2 Hottest 56 | . 40 43 . 56 Shots Fired 137 | . 82 20 . 35 Gun 123 | . 82 20 . 21 Cannon . | . . . . . Launcher 14 | . . . . 14 Special . | . . . . . Kinetic 123 | . 82 20 . 21 Thermal . | . . . . . Explosive 14 | . . . . 14 Electromagnetic . | . . . . . Robot Hit Streak 8 | . 8 8 . 8 Robot Miss Streak 6 | . 6 2 . 3 Penetration Max . | . . . . . Secondary Targets . | . . . . . Shots Hit Robots 77 | . 46 14 . 17 Core Hits 59 | . 17 8 . 34 Critical Kills . | . . . . . Critical Parts Destroyed . | . . . . . Critical Strikes . | . . . . . Melee Attacks . | . . . . . Impact . | . . . . . Slashing . | . . . . . Piercing . | . . . . . Sneak Attacks . | . . . . . Combat Hostiles . | . . . . . Follow-up Attacks . | . . . . . Damage Inflicted 1584 | . 385 186 . 1013 Guns 716 | . 385 186 . 145 Cannons . | . . . . . Explosions 866 | . . . . 866 Melee . | . . . . . Ramming 2 | . . . . 2 Kinetic 716 | . 385 186 . 145 Thermal . | . . . . . Explosive 866 | . . . . 866 Electromagnetic . | . . . . . Impact . | . . . . . Slashing . | . . . . . Piercing . | . . . . . Highest Corruption 1 | . 1 1 1 1 Average Corruption 1 | . 1 1 1 1 Corruption Purged . | . . . . . Corruption Blocked . | . . . . . Effects 23 | . . 10 11 2 Message Errors 6 | . . 1 4 1 Matter Fused 5 | . . 2 3 . Heat Flow Errors 4 | . . 2 2 . Energy Discharges 3 | . . 2 1 . Data Loss (minor) 2 | . . 2 . . Data Loss (major) 2 | . . 1 1 . Misfires 1 | . . . . 1 Overload Shots . | . . . . . Overflow Damage 40 | . . . . 40 Projectiles . | . . . . . Explosions 40 | . . . . 40 Melee . | . . . . . Knockbacks . | . . . . . Impact . | . . . . . Kinetic . | . . . . . Secondary . | . . . . . Self-Inflicted Damage 205 | . . . . 205 Shots 8 | . . . . 8 Rammed 1 | . . . . 1 Targets Rammed 1 | . . . . 1 Kicked . | . . . . . Crushed . | . . . . . Highest Temperature 205 | . 37 205 129 125 Average Temperature 45 | . 11 51 62 61 Received Heat Transfer 312 | . 183 69 . 60 Siege Activations . | . . . . . Robots Corrupted . | . . . . . Combat Hostiles . | . . . . . Parts Fried . | . . . . . Impact Corruptions . | . . . . . Robots Melted . | . . . . . Combat Hostiles . | . . . . . Parts Melted . | . . . . . Heat Transferred . | . . . . . Parts Sabotaged . | . . . . . Parts Stolen . | . . . . . Parts Stripped . | . . . . . Power Chain Reactions . | . . . . . Alert | -11 -10 -10 -10 -9 ------- Run | Yrd Mat Min Exi Min Peak Influence 106 | . 90 106 . 33 Initial 1 | . . 1 . . Average 20 | . 27 21 . 4 Maximum Alert Level . | . . . . . Low Security (%) 100 | . 100 100 . 100 Level 1 . | . . . . . Level 2 . | . . . . . Level 3 . | . . . . . Level 4 . | . . . . . Level 5 . | . . . . . High Security . | . . . . . Max Security . | . . . . . Squads Dispatched 1 | . 1 . . . Investigation . | . . . . . Extermination . | . . . . . Reinforcement 1 | . 1 . . . Assault . | . . . . . Garrison . | . . . . . Intercept . | . . . . . Searches Triggered . | . . . . . Construction Impeded . | . . . . . Haulers Reinforced . | . . . . . Active Scanning Responses . | . . . . . Cargo Convoy Interrupts . | . . . . . Stealth | -11 -10 -10 -10 -9 --------- Run | Yrd Mat Min Exi Min Distress Signals . | . . . . . Communications Jammed . | . . . . . Distress Signals . | . . . . . Times Spotted 35 | . 9 8 . 18 Peak Tracking Total 8 | . 3 2 . 8 Tactical Retreats . | . . . . . Traps | -11 -10 -10 -10 -9 ------- Run | Yrd Mat Min Exi Min Traps Triggered . | . . . . . Indirectly . | . . . . . Trap Hack Attempts . | . . . . . Triggered . | . . . . . Disarmed . | . . . . . Reprogrammed . | . . . . . Reused . | . . . . . Traps Extracted . | . . . . . Installed . | . . . . . Triggered 2 | . . 2 . . Machines | -11 -10 -10 -10 -9 ---------- Run | Yrd Mat Min Exi Min Machines Disabled . | . . . . . Max in Single Turn . | . . . . . Machines Repaired . | . . . . . Machines Dismantled . | . . . . . Machines Sabotaged . | . . . . . Overloaded Fab Kills . | . . . . . Hacking | -11 -10 -10 -10 -9 --------- Run | Yrd Mat Min Exi Min Machines Accessed 4 | . 2 . 2 . Terminals 2 | . 2 . . . Fabricators . | . . . . . Repair Stations . | . . . . . Recycling Units . | . . . . . Scanalyzers . | . . . . . Garrison Access . | . . . . . Total Hacks 11 | . 6 . 5 . Successful 6 | . 1 . 5 . Failed 5 | . 5 . . . Catastrophic . | . . . . . Database Lockouts . | . . . . . Manual 7 | . 6 . 1 . Terminals 6 | . 6 . . . Fabricators . | . . . . . Repair Stations . | . . . . . Recycling Units . | . . . . . Scanalyzers . | . . . . . Garrison Access . | . . . . . Terminal Hacks 6 | . 1 . 5 . Record 4 | . . . 4 . Robot Analysis 1 | . 1 . . . Derelict Proto ID Bank 1 | . . . 1 . Fabricator Hacks . | . . . . . Repair Station Hacks . | . . . . . Recycling Unit Hacks . | . . . . . Scanalyzer . | . . . . . Garrison Access Hacks . | . . . . . Unauthorized Hacks . | . . . . . Terminals . | . . . . . Fabricators . | . . . . . Repair Stations . | . . . . . Recycling Units . | . . . . . Scanalyzers . | . . . . . Garrison Access . | . . . . . Data Cores Recovered . | . . . . . Used . | . . . . . Hacking Detections 2 | . 2 . . . Full Trace Events 2 | . 2 . . . Feedback Events 1 | . 1 . . . Corruption 1 | . 1 . . . Feedback Blocked . | . . . . . Robot Schematics Acquired . | . . . . . Robots Built . | . . . . . Authchips . | . . . . . Time . | . . . . . Total Robot Build Rating . | . . . . . Part Schematics Acquired . | . . . . . Parts Built . | . . . . . Authchips . | . . . . . Time . | . . . . . Total Part Build Rating . | . . . . . Parts Repaired . | . . . . . Time . | . . . . . Parts Recycled . | . . . . . Recycled Matter . | . . . . . Retrieved Matter . | . . . . . Retrieved Components . | . . . . . Parts Scanalyzed . | . . . . . Part Schematics Acquired . | . . . . . Parts Damaged . | . . . . . Bothacking | -11 -10 -10 -10 -9 ------------ Run | Yrd Mat Min Exi Min Used RIF Installer . | . . . . . Robots Hacked . | . . . . . Non-combat . | . . . . . Combat . | . . . . . Robot Hacks Applied . | . . . . . Relay Couplers Released . | . . . . . Fabnet Peak Effective % . | . . . . . Robots Rewired . | . . . . . Allies Hacked . | . . . . . Hacks Repelled . | . . . . . Allies | -11 -10 -10 -10 -9 -------- Run | Yrd Mat Min Exi Min Total Allies 1 | . . 1 . . Largest Group 1 | . . 1 1 . Highest-Rated Group 31 | . . 31 31 . Highest-Rated Ally 31 | . . 31 31 . Total Orders . | . . . . . Ally Attacks . | . . . . . Total Damage . | . . . . . Kills . | . . . . . Allies Corrupted . | . . . . . Allies Melted . | . . . . . Intel | -11 -10 -10 -10 -9 ------- Run | Yrd Mat Min Exi Min Robot Analysis Total 1 | . 1 . . . Derelict Logs Recovered 2 | . . 1 . 1 Drone Launches . | . . . . . Drone Recoveries . | . . . . . Exploration | -11 -10 -10 -10 -9 ------------- Run | Yrd Mat Min Exi Min Turns Passed 3477 | . 585 1552 987 353 Spaces Moved 1272 | 1 247 628 306 90 Core . | . . . . . Treads 1257 | . 233 628 306 90 Legs 15 | 1 14 . . . Wheels . | . . . . . Hover . | . . . . . Flight . | . . . . . Fastest Speed 120 | 120 120 240 320 320 Average Speed 254 | 120 185 240 320 320 Slowest Speed 320 | 120 240 240 320 320 Overloaded Moves . | . . . . . Propulsion Burnouts . | . . . . . Robots Hopped . | . . . . . Cave-ins Triggered . | . . . . . Exploration Rate (%) 48 | 2 38 100 71 29 Regions Visited 4 Branch Regions 3 Pre-discovered Areas 1 | . . . 1 . Known Exits Taken . | . . . . . Unknown Exits Taken 4 | 1 1 1 1 . Scrap Searched 3 | . . 2 . 1 Spaces Dug . | . . . . . Terrain Destroyed 62 | . . . . 62 Melee . | . . . . . Projectile . | . . . . . AOE 62 | . . . . 62 Terrain Rammed . | . . . . . Walls Destroyed . | . . . . . Machines Disabled . | . . . . . Actions | -11 -10 -10 -10 -9 --------- Run | Yrd Mat Min Exi Min Total 1401 | . 307 656 318 120 Wait 9 | . 6 2 . 1 Move 1268 | . 246 627 305 90 Hop . | . . . . . Pick Up 18 | . 2 12 4 . Fast Attach 4 | . 2 2 . . Attach 6 | . 1 . 1 4 Detach 2 | . . . 2 . Swap 10 | . 7 1 2 . Drop 9 | . 2 2 4 1 Fire 74 | . 41 10 . 23 Melee . | . . . . . Ram . | . . . . . Kick . | . . . . . Crush 1 | . . . . 1 Escape Stasis . | . . . . . Rewire . | . . . . . Trap . | . . . . . Miscellaneous . | . . . . . Route ------- -11/Scrapyard -10/Materials -10/Mines (discovered 4 exits: [*Mat x2] / *Exi / [*Sub]) -10/Exiles (discovered 2 exits: [*Min x2]) -9/Mines History --------- Turn | Location | Event 1 | -11/Scrapyard | Discovered new exit (range 0) 1 | -11/Scrapyard | Entered Materials 246 | -10/Materials | Discovered new exit (range 17) 309 | -10/Materials | Build established: Mutant 586 | -10/Materials | Entered Mines 589 | -10/Mines | Discovered new exit (range 17) 591 | -10/Mines | Joined a pair of Derelicts in attacking an 0b10 outpost 632 | -10/Mines | Met a Derelict bent on vengeance 1128 | -10/Mines | Deemed a non-threat by the Exiles lab entrance 1128 | -10/Mines | Discovered new exit (range 5) 1304 | -10/Mines | Escorted by a lone wolf Derelict 1450 | -10/Mines | Discovered new exit (range 16) 1469 | -10/Mines | Learned 2 Materials zone layouts 1481 | -10/Mines | Received a Rocket Launcher from a helpful Derelict 1819 | -10/Mines | Discovered new exit (range 7) 2138 | -10/Mines | Entered Exiles 2138 | -10/Exiles | Accompanied by 1 ally 2193 | -10/Exiles | Discovered new exit (range 17) 2224 | -10/Exiles | Met 8R-AWN 2278 | -10/Exiles | Met EX-HEX 2416 | -10/Exiles | Met EX-DEC 2595 | -10/Exiles | Learned location of Zion (-6) 2646 | -10/Exiles | Met EX-BIN 2698 | -10/Exiles | Aligned with FarCom system 2701 | -10/Exiles | Given EX-Vault access code 2774 | -10/Exiles | Opened EX-Vault 2798 | -10/Exiles | Found Flying Fortress v7 2869 | -10/Exiles | Warned to stay clear of 0b10 Research branches 3097 | -10/Exiles | Discovered new exit (range 10) 3125 | -10/Exiles | Left Exiles lab with Flying Fortress v7 3125 | -10/Exiles | Entered Mines 3399 | -9/Mines | Assembled infested the area 3429 | -9/Mines | Build established: Scavenger-Mutant 3432 | -9/Mines | Core integrity fell below 50% 3473 | -9/Mines | Destroyed 14 combat bots 3476 | -9/Mines | Core integrity fell below 20% 3478 | -9/Mines | Destroyed by D-53 Grenadier with Mini Grenade Launcher Last Messages --------------- 03464_ C-30 ARC bursts open, deploying its payload. 03464_ D-53 Grenadier unfolds itself. 03464_ Lgt. Armor Plating destroyed. 03464_ as-93633 destroyed. 03466_ Destroyed Terrain Scanner. 03466_ U-05 Engineer destroyed. 03467_ Rocket Launcher destroyed. 03468_ Lgt. Treads destroyed. 03469_ D-53 Grenadier destroyed. 03470_ The unstable cave ceiling collapses. 03470_ Hvy. Assault Rifle destroyed. 03470_ Destroyed Hvy. Assault Rifle. 03470_ Lgt. Armor Plating destroyed. 03470_ Destroyed Lgt. Armor Plating. 03474_ The unstable cave ceiling collapses. 03475_ Lgt. Treads destroyed. 03475_ Destroyed Lgt. Treads. 03476_ The unstable cave ceiling collapses. 03476_ Lgt. Nuclear Core destroyed. 03477_ The unstable cave ceiling collapses. Map ----- +----------------------------------------------------+ | ?????????????????????????????????????????????????? | | ?????????????????????????????????????????????????? | | ?????????????????????????????????????????????????? | | ?????????????????????????????????????????????????? | | ?????????????????????????????????????????????????? | | ?????????????????????????????????????????????????? | | ?????????????????????????????????????????##??????? | | ????????????????????????????????????????? ??????? | | ?????????????????????????????????????????# #?????? | | ?????????????????????????????????????????# #?????? | | ?????????????????????????????????????????# #?????? | | ?????????????????????????????????????????# #?????? | | ?????????????????????????????????????????# ###???? | | ????????????????????????????????????????## ##### | | ????????????????????????????????????????# # | | ????????????????????????????????????????# | | ????????????????????????????????????????# """ | | ????????????????????????????????????????# """ | | ????????????????????????????????????????# """ | | ????????????##???#####??????????????????# | | ????????????# ## #######???????????## | | ????????????# ##########???# # | | ???????????# # ## ##??# ## # | | ??????????# #??# ###### | | ??????????# #### ##???? | | ?????????? a @ ## ##### | | ?????????? ! #### # | | ??????????# d ##??## # | | ?????????? ## #???# # # | | ??????????# # #???## ## # | | ???????????## ### #????## ### # | | ???????????# ????### #????# #?# # | | ???????????? ????????## #???## #?# | | ???????????? ?????????? #????######?# | | ????????????????????????# ##???????????# ## | | ????????????????????????# ##????????????##?? | | ????????????????????????## ##????????????????? | | ?????????????????????????## #?????????????????? | | ??????????????????????????# #?????????????????? | | ??????????????????????????# #?????????????????? | | ??????????????????????????## ##?????????????????? | | ????????????????????????????###??????????????????? | | ?????????????????????????????????????????????????? | | ?????????????????????????????????????????????????? | | | | | | | | | | | | | +----------------------------------------------------+ Best States ------------- Heat Dissipation 25 Energy Generation 14 Energy Capacity 250 Matter Stores 300 Matter Capacity 300 Sight Range 18 Terrain Scan Density 10 Armor Coverage 150 Utility Shielding 33 Evasion (%) 45 Recoil Reduction 2 Item Schematics ----------------- None Robot Schematics ------------------ None Fabricated ------------ Nothing Alien Tech Used ----------------- None Achievements -------------- None Challenges ------------ None Game ------ Seed HardcellPersonalMegatreads Manual? 0 Play Time 00:12:03 Cumulative 113.1 hours Start 2024.11.18 @ 19:33:43 End 2024.11.18 @ 19:43:30 Sessions 1 Manual Loads 0 Difficulty Rogue Special Mode None Game No. 205 Rogue 205 Adventurer 0 Explorer 0 Win Type - Total 0 Types 0/0/0/0/0/0/0/0/0 Lore% 42 Gallery% 40 Achievement% 35 Wizard Run 0 Options --------- Layout 0 ASCII 0 Keyboard 0 Movement Mouse Keybinds 0 Fullscreen 1 Font 24/Cog Map View 91x25 Zoom Use 80% Tactical HUD 1 Map Filters NONE Filters NONE Steam 1 RUN: a8e8fafd-d16f-4ef2-bd8f-70b9634db83b